[Event "*** Titled Tuesday Blitz"]
[Site "Chess.com"]
[Date "2018.07.03"]
[Round "10"]
[White "Ravan_02"]
[Black "Mikhail_Golubev"]
[Result "1-0"]
[WhiteElo "2473"]
[BlackElo "2408"]
[TimeControl "180+2"]
[EndTime "15:12:34 PDT"]
[Termination "Ravan_02 won on time"]

1. Nf3 {[%clk 0:03:01.9]} 1... d6 {[%clk 0:02:53.7]} 2. g3 {[%clk 0:03:03.8]}
2... g6 {[%clk 0:02:53.5]} 3. Bg2 {[%clk 0:03:02.8]} 3... Bg7 {[%clk 0:02:54]}
4. O-O {[%clk 0:03:04.2]} 4... e5 {[%clk 0:02:54.5]} 5. c4 {[%clk 0:03:04.3]}
5... Nc6 {[%clk 0:02:54.2]} 6. Nc3 {[%clk 0:03:03.7]} 6... f5 {[%clk 0:02:54]}
7. d3 {[%clk 0:03:03.2]} 7... h6 {[%clk 0:02:54.7]} 8. Nd5 {[%clk 0:03:00.4]}
8... Be6 {[%clk 0:02:19.7]} 9. Nd2 {[%clk 0:02:55.7]} 9... Qd7 {[%clk
0:02:19.5]} 10. Rb1 {[%clk 0:02:54.9]} 10... Nd8 {[%clk 0:02:17.4]} 11. b4
{[%clk 0:02:48.1]} 11... c6 {[%clk 0:02:17.6]} 12. Nc3 {[%clk 0:02:46]} 12...
Nf6 {[%clk 0:02:01.7]} 13. a4 {[%clk 0:02:40.7]} 13... O-O {[%clk 0:02:01.6]}
14. b5 {[%clk 0:02:40.8]} 14... c5 {[%clk 0:02:00.6]} 15. a5 {[%clk 0:02:41.1]}
15... Rc8 {[%clk 0:02:00.5]} 16. Nd5 {[%clk 0:02:26.7]} 16... Bxd5 {[%clk
0:01:48.8]} 17. cxd5 {[%clk 0:02:28.5]} 17... Nf7 {[%clk 0:01:48.9]} 18. Nc4
{[%clk 0:02:28.9]} 18... g5 {[%clk 0:01:46.2]} 19. f4 {[%clk 0:02:29.4]} 19...
gxf4 {[%clk 0:01:08.6]} 20. gxf4 {[%clk 0:02:31.3]} 20... e4 {[%clk 0:01:09.7]}
21. Bb2 {[%clk 0:02:24.7]} 21... Rce8 {[%clk 0:01:10.5]} 22. Kh1 {[%clk
0:02:23.3]} 22... Nh5 {[%clk 0:01:07.8]} 23. Bxg7 {[%clk 0:02:21.6]} 23... Nxg7
{[%clk 0:01:07.9]} 24. dxe4 {[%clk 0:02:21.2]} 24... fxe4 {[%clk 0:01:07.8]} 25.
e3 {[%clk 0:02:22.5]} 25... Nf5 {[%clk 0:00:51.4]} 26. Qg4+ {[%clk 0:02:15.5]}
26... Kh7 {[%clk 0:00:50.9]} 27. Bh3 {[%clk 0:02:16.2]} 27... Nh8 {[%clk
0:00:51.3]} 28. Rg1 {[%clk 0:02:12]} 28... Rf6 {[%clk 0:00:41.8]} 29. Nxd6
{[%clk 0:01:38]} 29... Qxd6 {[%clk 0:00:25.9]} 30. Qxf5+ {[%clk 0:01:38.4]}
30... Rxf5 {[%clk 0:00:26.4]} 31. Bxf5+ {[%clk 0:01:40.3]} 31... Ng6 {[%clk
0:00:27.5]} 32. Bxg6+ {[%clk 0:01:30.4]} 32... Qxg6 {[%clk 0:00:18.4]} 33. Rxg6
{[%clk 0:01:32.3]} 33... Kxg6 {[%clk 0:00:17.7]} 34. b6 {[%clk 0:01:27.2]} 34...
a6 {[%clk 0:00:02.7]} 35. Rc1 {[%clk 0:01:27.7]} 35... Rc8 {[%clk 0:00:02.4]}
36. d6 {[%clk 0:01:27.8]} 36... Kf6 {[%clk 0:00:02.4]} 37. d7 {[%clk 0:01:24.2]}
1-0

[Event "*** Titled Tuesday Blitz"]
[Site "Chess.com"]
[Date "2018.07.03"]
[Round "10"]
[White "Grebeniuk-S"]
[Black "volodja49"]
[Result "1-0"]
[WhiteElo "2469"]
[BlackElo "2473"]
[TimeControl "180+2"]
[EndTime "15:12:35 PDT"]
[Termination "Grebeniuk-S won on time"]

1. d4 {[%clk 0:03:01.9]} 1... d5 {[%clk 0:02:59.5]} 2. c4 {[%clk 0:03:02.6]}
2... e6 {[%clk 0:03:00.2]} 3. Nc3 {[%clk 0:03:03.3]} 3... Nf6 {[%clk 0:03:01.5]}
4. Bg5 {[%clk 0:03:03.1]} 4... Nbd7 {[%clk 0:03:02]} 5. cxd5 {[%clk 0:03:03.8]}
5... exd5 {[%clk 0:03:02.5]} 6. e3 {[%clk 0:03:05]} 6... c6 {[%clk 0:03:03.5]}
7. Qc2 {[%clk 0:03:06.2]} 7... Be7 {[%clk 0:03:03.5]} 8. Bd3 {[%clk 0:03:07.4]}
8... O-O {[%clk 0:03:05]} 9. Nge2 {[%clk 0:03:08.5]} 9... Re8 {[%clk 0:03:06.3]}
10. O-O {[%clk 0:03:09]} 10... Nf8 {[%clk 0:03:07.2]} 11. Rae1 {[%clk
0:03:10.1]} 11... Ng4 {[%clk 0:02:54]} 12. Bf4 {[%clk 0:03:02.4]} 12... Bd6
{[%clk 0:02:54.6]} 13. h3 {[%clk 0:03:00.5]} 13... Bxf4 {[%clk 0:02:52.4]} 14.
Nxf4 {[%clk 0:03:00.6]} 14... Nf6 {[%clk 0:02:54.3]} 15. f3 {[%clk 0:02:53.2]}
15... g5 {[%clk 0:02:44.1]} 16. Nfe2 {[%clk 0:02:38.6]} 16... Rxe3 {[%clk
0:02:36.8]} 17. Qd2 {[%clk 0:02:39.9]} 17... Qe7 {[%clk 0:02:32.3]} 18. Kf2
{[%clk 0:02:40.8]} 18... Re6 {[%clk 0:02:21.7]} 19. Qxg5+ {[%clk 0:02:40.1]}
19... Ng6 {[%clk 0:02:21.5]} 20. Nf4 {[%clk 0:02:38.5]} 20... Rxe1 {[%clk
0:02:05.7]} 21. Rxe1 {[%clk 0:02:39.3]} 21... Qd6 {[%clk 0:01:09.1]} 22. Bxg6
{[%clk 0:01:31.5]} 22... hxg6 {[%clk 0:01:11]} 23. h4 {[%clk 0:01:32.6]} 23...
Bf5 {[%clk 0:00:53]} 24. Re5 {[%clk 0:01:31.4]} 24... Nh7 {[%clk 0:00:29.9]} 25.
Qh6 {[%clk 0:01:27.1]} 25... Nf8 {[%clk 0:00:24]} 26. Rxf5 {[%clk 0:01:24.3]}
26... Qb4 {[%clk 0:00:15.8]} 27. Re5 {[%clk 0:00:58.7]} 27... Qxd4+ {[%clk
0:00:13.6]} 28. Re3 {[%clk 0:00:59.1]} 28... Re8 {[%clk 0:00:10]} 29. Nfe2
{[%clk 0:00:55.9]} 29... Qd2 {[%clk 0:00:10.6]} 30. Nb1 {[%clk 0:00:34]} 1-0

[Event "*** Titled Tuesday Blitz"]
[Site "Chess.com"]
[Date "2018.07.03"]
[Round "10"]
[White "CarlssonLudvig"]
[Black "Orest_Vovk"]
[Result "0-1"]
[WhiteElo "2132"]
[BlackElo "2250"]
[TimeControl "180+2"]
[EndTime "15:12:37 PDT"]
[Termination "Orest_Vovk won by checkmate"]

1. Nf3 {[%clk 0:03:01.9]} 1... h6 {[%clk 0:02:56.9]} 2. d4 {[%clk 0:03:02]} 2...
g5 {[%clk 0:02:58.8]} 3. e4 {[%clk 0:03:00.3]} 3... Bg7 {[%clk 0:02:59]} 4. h3
{[%clk 0:02:59.6]} 4... c5 {[%clk 0:02:58.4]} 5. dxc5 {[%clk 0:02:57.1]} 5...
Qa5+ {[%clk 0:02:58.9]} 6. Bd2 {[%clk 0:02:56.5]} 6... Qxc5 {[%clk 0:02:59.6]}
7. Bc3 {[%clk 0:02:56.9]} 7... Bxc3+ {[%clk 0:03:00.4]} 8. Nxc3 {[%clk
0:02:58.8]} 8... Nc6 {[%clk 0:03:00]} 9. Qd5 {[%clk 0:02:57]} 9... Qb4 {[%clk
0:02:52.1]} 10. Qb3 {[%clk 0:02:54.5]} 10... Nf6 {[%clk 0:02:48.3]} 11. Qxb4
{[%clk 0:02:53.5]} 11... Nxb4 {[%clk 0:02:50.2]} 12. O-O-O {[%clk 0:02:54.7]}
12... d6 {[%clk 0:02:48.3]} 13. a3 {[%clk 0:02:54.6]} 13... Nc6 {[%clk
0:02:48.9]} 14. Bb5 {[%clk 0:02:54.9]} 14... Bd7 {[%clk 0:02:48]} 15. Rhe1
{[%clk 0:02:53.3]} 15... a6 {[%clk 0:02:46.9]} 16. Bf1 {[%clk 0:02:52.5]} 16...
g4 {[%clk 0:02:45.1]} 17. hxg4 {[%clk 0:02:51.9]} 17... Nxg4 {[%clk 0:02:45.3]}
18. Rd2 {[%clk 0:02:52.1]} 18... Rc8 {[%clk 0:02:42.2]} 19. b3 {[%clk
0:02:44.2]} 19... Rg8 {[%clk 0:02:38.6]} 20. Kb2 {[%clk 0:02:44.5]} 20... Nce5
{[%clk 0:02:35.8]} 21. Nxe5 {[%clk 0:02:44.2]} 21... Nxe5 {[%clk 0:02:37.7]} 22.
f3 {[%clk 0:02:45.4]} 22... Be6 {[%clk 0:02:33.1]} 23. Ne2 {[%clk 0:02:34.8]}
23... h5 {[%clk 0:02:30]} 24. Nf4 {[%clk 0:02:35.4]} 24... h4 {[%clk 0:02:30.8]}
25. a4 {[%clk 0:02:29.8]} 25... Ng6 {[%clk 0:02:19.6]} 26. Nxg6 {[%clk
0:02:28.8]} 26... Rxg6 {[%clk 0:02:18.8]} 27. Bd3 {[%clk 0:02:29]} 27... Rg3
{[%clk 0:02:17.2]} 28. Rh1 {[%clk 0:02:27.4]} 28... h3 {[%clk 0:02:17.6]} 29.
gxh3 {[%clk 0:02:26.6]} 29... Rxf3 {[%clk 0:02:18.4]} 30. h4 {[%clk 0:02:28]}
30... Kd7 {[%clk 0:02:15.5]} 31. h5 {[%clk 0:02:29]} 31... Rh8 {[%clk
0:02:15.9]} 32. e5 {[%clk 0:02:30]} 32... Bf5 {[%clk 0:02:07.3]} 33. Bxf5+
{[%clk 0:02:27.9]} 33... Rxf5 {[%clk 0:02:07.9]} 34. exd6 {[%clk 0:02:29.8]}
34... exd6 {[%clk 0:02:09]} 35. h6 {[%clk 0:02:31.2]} 35... Rh7 {[%clk
0:02:09.3]} 36. Rg2 {[%clk 0:02:30.8]} 36... Rf6 {[%clk 0:02:09.3]} 37. Rgh2
{[%clk 0:02:23.6]} 37... Rg6 {[%clk 0:02:07.5]} 38. Rf2 {[%clk 0:02:23]} 38...
Ke7 {[%clk 0:02:00.1]} 39. Re1+ {[%clk 0:02:23.4]} 39... Re6 {[%clk 0:02:00.2]}
40. Rxe6+ {[%clk 0:02:17.2]} 40... fxe6 {[%clk 0:02:00.8]} 41. Rg2 {[%clk
0:02:17.4]} 41... Kf6 {[%clk 0:01:58.4]} 42. Rd2 {[%clk 0:02:17.2]} 42... d5
{[%clk 0:01:57.6]} 43. Rf2+ {[%clk 0:02:18.1]} 43... Kg5 {[%clk 0:01:53.7]} 44.
Re2 {[%clk 0:02:19.5]} 44... Rxh6 {[%clk 0:01:53.9]} 45. Kc3 {[%clk 0:02:17.9]}
45... Kf6 {[%clk 0:01:52.9]} 46. Kd4 {[%clk 0:02:19.2]} 46... b6 {[%clk
0:01:50.9]} 47. Rf2+ {[%clk 0:02:19.6]} 47... Ke7 {[%clk 0:01:51.5]} 48. a5
{[%clk 0:02:18]} 48... bxa5 {[%clk 0:01:48.8]} 49. Kc5 {[%clk 0:02:18.2]} 49...
Rh4 {[%clk 0:01:47.6]} 50. Kb6 {[%clk 0:02:19.2]} 50... a4 {[%clk 0:01:48.6]}
51. Kxa6 {[%clk 0:02:13.8]} 51... a3 {[%clk 0:01:45.5]} 52. c3 {[%clk
0:02:11.9]} 52... Rh3 {[%clk 0:01:45.1]} 53. Ka5 {[%clk 0:02:12.2]} 53... Rxc3
{[%clk 0:01:43.6]} 54. Ka4 {[%clk 0:02:13.7]} 54... d4 {[%clk 0:01:44.8]} 55.
Kxa3 {[%clk 0:02:14.2]} 55... e5 {[%clk 0:01:46.1]} 56. Kb4 {[%clk 0:02:13.6]}
56... Kd6 {[%clk 0:01:44.3]} 57. Rd2 {[%clk 0:02:11.5]} 57... Kd5 {[%clk
0:01:44.7]} 58. Re2 {[%clk 0:02:09.8]} 58... e4 {[%clk 0:01:45.2]} 59. Rh2
{[%clk 0:02:10.5]} 59... e3 {[%clk 0:01:41.7]} 60. Rh5+ {[%clk 0:02:11.3]} 60...
Ke4 {[%clk 0:01:42.7]} 61. Rh4+ {[%clk 0:02:13.2]} 61... Kd3 {[%clk 0:01:43.6]}
62. Rh3 {[%clk 0:02:11]} 62... Rc8 {[%clk 0:01:43.7]} 63. Ka3 {[%clk 0:02:07.8]}
63... Kd2 {[%clk 0:01:43.3]} 64. Kb2 {[%clk 0:02:05.1]} 64... d3 {[%clk
0:01:43.3]} 65. b4 {[%clk 0:02:00.9]} 65... e2 {[%clk 0:01:43.5]} 66. Rh2 {[%clk
0:02:00.5]} 66... Kd1 {[%clk 0:01:43.9]} 67. b5 {[%clk 0:01:52.9]} 67... e1=Q
{[%clk 0:01:43.2]} 68. b6 {[%clk 0:01:54.8]} 68... Qb4+ {[%clk 0:01:43]} 69. Ka1
{[%clk 0:01:54.6]} 69... Ra8+ {[%clk 0:01:41.5]} 70. Ra2 {[%clk 0:01:56]} 70...
Rxa2+ {[%clk 0:01:42]} 71. Kxa2 {[%clk 0:01:57]} 71... Kc2 {[%clk 0:01:42.9]}
72. b7 {[%clk 0:01:56.8]} 72... Qb2# {[%clk 0:01:43.6]} 0-1

[Event "*** Titled Tuesday Blitz"]
[Site "Chess.com"]
[Date "2018.07.03"]
[Round "10"]
[White "RiskyDecision"]
[Black "Passacaglia23"]
[Result "0-1"]
[WhiteElo "2500"]
[BlackElo "2330"]
[TimeControl "180+2"]
[EndTime "15:12:42 PDT"]
[Termination "Passacaglia23 won by checkmate"]

1. d4 {[%clk 0:03:01.9]} 1... d5 {[%clk 0:02:59.5]} 2. c4 {[%clk 0:03:02.2]}
2... c6 {[%clk 0:03:00.6]} 3. cxd5 {[%clk 0:03:02.2]} 3... cxd5 {[%clk
0:03:01.4]} 4. Bf4 {[%clk 0:03:03.7]} 4... Nc6 {[%clk 0:03:02.7]} 5. e3 {[%clk
0:03:04.4]} 5... Nf6 {[%clk 0:03:04.2]} 6. Nc3 {[%clk 0:03:04.6]} 6... a6 {[%clk
0:03:05.8]} 7. Be2 {[%clk 0:03:04.1]} 7... e6 {[%clk 0:03:06.6]} 8. Nf3 {[%clk
0:03:04.7]} 8... Bd6 {[%clk 0:03:08]} 9. Bxd6 {[%clk 0:03:06.2]} 9... Qxd6
{[%clk 0:03:09.6]} 10. O-O {[%clk 0:03:07.4]} 10... b5 {[%clk 0:03:11.1]} 11.
Rc1 {[%clk 0:03:08]} 11... O-O {[%clk 0:03:11.3]} 12. a3 {[%clk 0:03:08]} 12...
Na5 {[%clk 0:03:06.3]} 13. Ne5 {[%clk 0:02:57.4]} 13... Bb7 {[%clk 0:02:46.6]}
14. Bf3 {[%clk 0:02:17.6]} 14... Rac8 {[%clk 0:02:44.8]} 15. b4 {[%clk
0:02:16.2]} 15... Nc4 {[%clk 0:02:42.7]} 16. Nxc4 {[%clk 0:02:17.5]} 16... Rxc4
{[%clk 0:02:43.3]} 17. Be2 {[%clk 0:02:09.1]} 17... Rc6 {[%clk 0:02:39.3]} 18.
Na2 {[%clk 0:02:09.2]} 18... Nd7 {[%clk 0:02:27]} 19. Rxc6 {[%clk 0:02:03.9]}
19... Qxc6 {[%clk 0:02:28.9]} 20. Qd2 {[%clk 0:01:57.7]} 20... Nb6 {[%clk
0:02:16.2]} 21. Rc1 {[%clk 0:01:56.4]} 21... Nc4 {[%clk 0:02:17.4]} 22. Qc3
{[%clk 0:01:54.5]} 22... Rc8 {[%clk 0:02:11.4]} 23. Bd3 {[%clk 0:01:42.6]} 23...
g6 {[%clk 0:02:06.4]} 24. Qe1 {[%clk 0:01:42.8]} 24... Qd6 {[%clk 0:01:52.9]}
25. Rc3 {[%clk 0:01:39.5]} 25... Ra8 {[%clk 0:01:40.8]} 26. Nc1 {[%clk
0:01:25.3]} 26... Qd8 {[%clk 0:00:43.4]} 27. Nb3 {[%clk 0:01:20.3]} 27... a5
{[%clk 0:00:36.7]} 28. Bxc4 {[%clk 0:01:18.7]} 28... axb4 {[%clk 0:00:37.4]} 29.
axb4 {[%clk 0:01:14.6]} 29... dxc4 {[%clk 0:00:38.9]} 30. Nc5 {[%clk 0:00:57.5]}
30... Bc6 {[%clk 0:00:38.2]} 31. Rc1 {[%clk 0:00:54.2]} 31... Qd5 {[%clk
0:00:34.5]} 32. f3 {[%clk 0:00:51.7]} 32... Ra2 {[%clk 0:00:21.5]} 33. Ra1
{[%clk 0:00:48.6]} 33... Rxg2+ {[%clk 0:00:21.1]} 34. Kxg2 {[%clk 0:00:26.6]}
34... Qxf3+ {[%clk 0:00:21.9]} 35. Kg1 {[%clk 0:00:27.6]} 35... Qg2# {[%clk
0:00:23.4]} 0-1

[Event "*** Titled Tuesday Blitz"]
[Site "Chess.com"]
[Date "2018.07.03"]
[Round "10"]
[White "canwedoit"]
[Black "bugsbunny444"]
[Result "0-1"]
[WhiteElo "2492"]
[BlackElo "2395"]
[TimeControl "180+2"]
[EndTime "15:13:02 PDT"]
[Termination "bugsbunny444 won by resignation"]

1. b3 {[%clk 0:03:01.9]} 1... d5 {[%clk 0:03:00.3]} 2. Bb2 {[%clk 0:03:02.8]}
2... Nf6 {[%clk 0:03:01.7]} 3. e3 {[%clk 0:03:01.9]} 3... e6 {[%clk 0:03:02.6]}
4. f4 {[%clk 0:02:53.3]} 4... g6 {[%clk 0:03:03.5]} 5. Nf3 {[%clk 0:02:53]} 5...
Bg7 {[%clk 0:03:04.9]} 6. Be2 {[%clk 0:02:53.6]} 6... O-O {[%clk 0:03:06.4]} 7.
O-O {[%clk 0:02:54.4]} 7... c5 {[%clk 0:03:07]} 8. d3 {[%clk 0:02:54.6]} 8...
Ng4 {[%clk 0:02:49.1]} 9. Bxg7 {[%clk 0:02:49]} 9... Kxg7 {[%clk 0:02:45.3]} 10.
Qc1 {[%clk 0:02:44.5]} 10... d4 {[%clk 0:02:42.6]} 11. e4 {[%clk 0:02:40.2]}
11... Nc6 {[%clk 0:02:23.3]} 12. Na3 {[%clk 0:02:39.6]} 12... Ne3 {[%clk
0:01:58]} 13. Re1 {[%clk 0:02:32.5]} 13... Qc7 {[%clk 0:01:40.2]} 14. g3 {[%clk
0:02:30]} 14... e5 {[%clk 0:01:35.7]} 15. f5 {[%clk 0:02:08.2]} 15... gxf5
{[%clk 0:01:29.4]} 16. Nc4 {[%clk 0:02:08]} 16... f4 {[%clk 0:01:28.1]} 17. gxf4
{[%clk 0:01:53.9]} 17... exf4 {[%clk 0:01:28.6]} 18. Kh1 {[%clk 0:01:51.8]}
18... Kh8 {[%clk 0:01:17.2]} 19. c3 {[%clk 0:01:45.6]} 19... Bg4 {[%clk
0:01:03.4]} 20. cxd4 {[%clk 0:01:41.2]} 20... Bxf3+ {[%clk 0:01:04]} 21. Bxf3
{[%clk 0:01:42]} 21... cxd4 {[%clk 0:01:05.3]} 22. Qb2 {[%clk 0:01:32.6]} 22...
Rad8 {[%clk 0:00:41.5]} 23. Nxe3 {[%clk 0:01:32.7]} 23... fxe3 {[%clk
0:00:42.7]} 24. Rxe3 {[%clk 0:01:32.4]} 24... Ne5 {[%clk 0:00:31]} 25. Rc1
{[%clk 0:01:22.5]} 25... Qe7 {[%clk 0:00:31.9]} 26. Re2 {[%clk 0:01:05]} 26...
Nxf3 {[%clk 0:00:32.9]} 27. Rf2 {[%clk 0:01:03.5]} 27... Ne5 {[%clk 0:00:30.5]}
28. Qe2 {[%clk 0:01:02.2]} 28... Rc8 {[%clk 0:00:25.5]} 29. Rcf1 {[%clk
0:01:00.1]} 29... Rg8 {[%clk 0:00:23.3]} 30. Rf6 {[%clk 0:00:58.7]} 30... Rg6
{[%clk 0:00:17.5]} 31. R6f5 {[%clk 0:00:57.7]} 31... Rcg8 {[%clk 0:00:17.8]} 32.
Qh5 {[%clk 0:00:56.5]} 32... Rg5 {[%clk 0:00:15.7]} 33. Qh3 {[%clk 0:00:39.4]}
33... Qe6 {[%clk 0:00:10.2]} 34. Qh4 {[%clk 0:00:32.2]} 34... Qg6 {[%clk
0:00:09.8]} 35. Qf2 {[%clk 0:00:29.1]} 35... Rg2 {[%clk 0:00:06.8]} 36. Qe1
{[%clk 0:00:25.4]} 36... Rxh2+ {[%clk 0:00:05.9]} 0-1

[Event "*** Titled Tuesday Blitz"]
[Site "Chess.com"]
[Date "2018.07.03"]
[Round "10"]
[White "Godzillator"]
[Black "WPWPWP-2015"]
[Result "0-1"]
[WhiteElo "2313"]
[BlackElo "2394"]
[TimeControl "180+2"]
[EndTime "15:13:42 PDT"]
[Termination "WPWPWP-2015 won by resignation"]

1. d4 {[%clk 0:03:01.9]} 1... Nf6 {[%clk 0:02:59.6]} 2. c4 {[%clk 0:03:03.2]}
2... e6 {[%clk 0:03:00.4]} 3. Nc3 {[%clk 0:03:04.4]} 3... Bb4 {[%clk 0:03:00.7]}
4. Qc2 {[%clk 0:03:05.7]} 4... d5 {[%clk 0:03:00.8]} 5. cxd5 {[%clk 0:03:06.1]}
5... Qxd5 {[%clk 0:03:01.1]} 6. Nf3 {[%clk 0:03:07.2]} 6... Qf5 {[%clk
0:03:01.5]} 7. Qxf5 {[%clk 0:03:07.5]} 7... exf5 {[%clk 0:03:02.2]} 8. a3 {[%clk
0:03:09.1]} 8... Be7 {[%clk 0:03:02.3]} 9. Bf4 {[%clk 0:03:09.6]} 9... c6 {[%clk
0:03:02.8]} 10. e3 {[%clk 0:03:10.5]} 10... Nbd7 {[%clk 0:03:03.4]} 11. h3
{[%clk 0:03:11.2]} 11... Nb6 {[%clk 0:03:02.8]} 12. Bd3 {[%clk 0:03:11.6]} 12...
a5 {[%clk 0:03:02.3]} 13. Nd2 {[%clk 0:03:11.3]} 13... Be6 {[%clk 0:03:02.3]}
14. Bg3 {[%clk 0:03:08.3]} 14... g6 {[%clk 0:02:44.2]} 15. O-O {[%clk
0:03:08.6]} 15... Nfd5 {[%clk 0:02:41]} 16. Rfc1 {[%clk 0:03:01.5]} 16... Bf6
{[%clk 0:02:34.1]} 17. Nxd5 {[%clk 0:02:56.8]} 17... Nxd5 {[%clk 0:02:32.6]} 18.
Nc4 {[%clk 0:02:57.2]} 18... O-O {[%clk 0:02:26]} 19. Rab1 {[%clk 0:02:48.8]}
19... f4 {[%clk 0:02:21.6]} 20. Bh2 {[%clk 0:02:40.4]} 20... fxe3 {[%clk
0:02:20.7]} 21. fxe3 {[%clk 0:02:41.6]} 21... Bg5 {[%clk 0:02:07.9]} 22. e4
{[%clk 0:02:39.2]} 22... Bxc1 {[%clk 0:02:06.3]} 23. Rxc1 {[%clk 0:02:39.4]}
23... Nf6 {[%clk 0:01:56.9]} 24. Nd6 {[%clk 0:02:35.8]} 24... Rad8 {[%clk
0:01:53.1]} 25. e5 {[%clk 0:02:29.2]} 25... Ne8 {[%clk 0:01:48.8]} 26. Nxb7
{[%clk 0:02:26.7]} 26... Rxd4 {[%clk 0:01:48.8]} 27. Be2 {[%clk 0:02:22.8]}
27... Bd5 {[%clk 0:01:47.6]} 28. Nxa5 {[%clk 0:02:20.7]} 28... Rd2 {[%clk
0:01:46.7]} 29. Bf3 {[%clk 0:02:16.7]} 29... Rxb2 {[%clk 0:01:44.1]} 30. Nxc6
{[%clk 0:02:16.1]} 30... Bxf3 {[%clk 0:01:43]} 31. gxf3 {[%clk 0:02:16.9]} 31...
Rb3 {[%clk 0:01:40.4]} 32. Ne7+ {[%clk 0:02:09.4]} 32... Kg7 {[%clk 0:01:40.8]}
33. f4 {[%clk 0:02:05.4]} 33... Rxa3 {[%clk 0:01:35.4]} 34. Kg2 {[%clk
0:01:56.1]} 34... Ra2+ {[%clk 0:01:34.9]} 35. Kg3 {[%clk 0:01:55.4]} 35... Nc7
{[%clk 0:01:33]} 36. Rxc7 {[%clk 0:01:53.2]} 36... Rb8 {[%clk 0:01:28.2]} 37.
Rc3 {[%clk 0:01:51.4]} 37... Rbb2 {[%clk 0:01:27.7]} 38. Nd5 {[%clk 0:01:39.8]}
38... Rxh2 {[%clk 0:01:21.5]} 39. Nf6 {[%clk 0:01:39.4]} 39... Rag2+ {[%clk
0:01:14.4]} 40. Kf3 {[%clk 0:01:40.2]} 40... Rxh3+ {[%clk 0:01:13.6]} 41. Kxg2
{[%clk 0:01:40.9]} 41... Rxc3 {[%clk 0:01:14]} 42. Kf2 {[%clk 0:01:41.9]} 42...
Ra3 {[%clk 0:01:14.2]} 43. Kg2 {[%clk 0:01:42.8]} 43... h5 {[%clk 0:01:14]} 44.
Kf2 {[%clk 0:01:43.6]} 44... Ra4 {[%clk 0:01:14.4]} 45. Kg3 {[%clk 0:01:44.3]}
45... Ra5 {[%clk 0:01:15]} 46. Kh4 {[%clk 0:01:43.7]} 46... Ra6 {[%clk
0:01:15.6]} 47. Ne8+ {[%clk 0:01:43.4]} 47... Kf8 {[%clk 0:01:15.3]} 48. Nc7
{[%clk 0:01:44.3]} 48... Ra7 {[%clk 0:01:14.6]} 49. Nb5 {[%clk 0:01:43.5]} 49...
Ra4 {[%clk 0:01:14.2]} 50. Kg5 {[%clk 0:01:42.3]} 50... Kg7 {[%clk 0:01:13.4]}
51. Nd6 {[%clk 0:01:41.6]} 51... Ra6 {[%clk 0:01:09.9]} 52. Ne8+ {[%clk
0:01:42.4]} 52... Kf8 {[%clk 0:01:10.2]} 53. Nc7 {[%clk 0:01:43.2]} 53... Ra4
{[%clk 0:01:07.1]} 54. Nd5 {[%clk 0:01:40.8]} 54... Kg7 {[%clk 0:01:07]} 55. Nf6
{[%clk 0:01:39.7]} 55... Ra1 {[%clk 0:01:05.9]} 56. Ne8+ {[%clk 0:01:39.2]}
56... Kf8 {[%clk 0:01:06.2]} 57. Nd6 {[%clk 0:01:39.8]} 57... Rd1 {[%clk
0:00:56.5]} 58. Kf6 {[%clk 0:01:33.8]} 58... Rf1 {[%clk 0:00:50.2]} 59. f5
{[%clk 0:01:32.6]} 59... h4 {[%clk 0:00:48.4]} 60. Kg5 {[%clk 0:01:25.9]} 60...
h3 {[%clk 0:00:43.8]} 61. e6 {[%clk 0:01:16.9]} 61... fxe6 {[%clk 0:00:40.1]}
62. fxg6 {[%clk 0:01:16.1]} 62... h2 {[%clk 0:00:39.3]} 63. Kh6 {[%clk
0:01:13.9]} 0-1

[Event "*** Titled Tuesday Blitz"]
[Site "Chess.com"]
[Date "2018.07.03"]
[Round "10"]
[White "NemtsevIgor"]
[Black "BlackBoarder"]
[Result "1-0"]
[WhiteElo "2389"]
[BlackElo "2234"]
[TimeControl "180+2"]
[EndTime "15:13:44 PDT"]
[Termination "NemtsevIgor won by resignation"]

1. d3 {[%clk 0:03:01.9]} 1... d5 {[%clk 0:02:51.1]} 2. g3 {[%clk 0:03:02.5]}
2... Nf6 {[%clk 0:02:52]} 3. Nf3 {[%clk 0:03:03.5]} 3... c5 {[%clk 0:02:52.8]}
4. Bg2 {[%clk 0:03:04.5]} 4... Nc6 {[%clk 0:02:54.1]} 5. O-O {[%clk 0:03:05.2]}
5... e6 {[%clk 0:02:55.5]} 6. Nc3 {[%clk 0:03:05.5]} 6... Be7 {[%clk 0:02:57]}
7. e4 {[%clk 0:02:51.2]} 7... O-O {[%clk 0:02:56.1]} 8. e5 {[%clk 0:02:50.6]}
8... Nd7 {[%clk 0:02:41.4]} 9. Bf4 {[%clk 0:02:50.4]} 9... g5 {[%clk 0:02:33.1]}
10. Bd2 {[%clk 0:02:44.8]} 10... Ndxe5 {[%clk 0:02:31.9]} 11. Nxe5 {[%clk
0:02:44.1]} 11... Nxe5 {[%clk 0:02:33.8]} 12. f4 {[%clk 0:02:44.7]} 12... gxf4
{[%clk 0:02:26.6]} 13. gxf4 {[%clk 0:02:43.9]} 13... Ng6 {[%clk 0:02:15]} 14. f5
{[%clk 0:02:43]} 14... exf5 {[%clk 0:02:13.9]} 15. Nxd5 {[%clk 0:02:42.8]} 15...
Be6 {[%clk 0:02:09.7]} 16. Nxe7+ {[%clk 0:02:33.9]} 16... Qxe7 {[%clk
0:02:11.6]} 17. Bc3 {[%clk 0:02:28.5]} 17... Rad8 {[%clk 0:01:58.8]} 18. Qh5
{[%clk 0:02:11.2]} 18... b5 {[%clk 0:01:14.9]} 19. Rae1 {[%clk 0:01:51.7]} 19...
b4 {[%clk 0:01:06.4]} 20. Bd2 {[%clk 0:01:51.5]} 20... Qf6 {[%clk 0:01:04.3]}
21. Bg5 {[%clk 0:01:43.8]} 21... Qd4+ {[%clk 0:01:04.6]} 22. Kh1 {[%clk
0:01:44.8]} 22... Rd7 {[%clk 0:01:00.4]} 23. Re3 {[%clk 0:01:27.5]} 23... f4
{[%clk 0:00:37.2]} 24. Re4 {[%clk 0:01:27.7]} 24... Qxb2 {[%clk 0:00:34.5]} 25.
Rexf4 {[%clk 0:01:18.7]} 25... Qe5 {[%clk 0:00:22.2]} 26. Re4 {[%clk 0:00:53.3]}
26... Qb2 {[%clk 0:00:17.7]} 27. Bh6 {[%clk 0:00:47.4]} 27... Rfd8 {[%clk
0:00:16.4]} 28. Be3 {[%clk 0:00:40.4]} 28... Bd5 {[%clk 0:00:15.6]} 29. Rg4
{[%clk 0:00:39.7]} 29... Bxg2+ {[%clk 0:00:16.3]} 30. Rxg2 {[%clk 0:00:40.9]}
30... Qxa2 {[%clk 0:00:07]} 31. Bg5 {[%clk 0:00:39.3]} 31... Qd5 {[%clk
0:00:07.5]} 32. Qh6 {[%clk 0:00:38.6]} 32... Qc6 {[%clk 0:00:04.3]} 33. Bf6
{[%clk 0:00:37.1]} 33... Qxf6 {[%clk 0:00:02.5]} 34. Rxf6 {[%clk 0:00:37.9]}
34... a5 {[%clk 0:00:03.3]} 35. Ra6 {[%clk 0:00:30]} 35... Re7 {[%clk
0:00:03.1]} 36. h4 {[%clk 0:00:30.6]} 36... Re1+ {[%clk 0:00:04.1]} 37. Kh2
{[%clk 0:00:31.9]} 37... Ra1 {[%clk 0:00:03.4]} 38. h5 {[%clk 0:00:32.9]} 38...
a4 {[%clk 0:00:02.8]} 39. hxg6 {[%clk 0:00:33.9]} 39... fxg6 {[%clk 0:00:04.7]}
40. Rgxg6+ {[%clk 0:00:33.7]} 40... hxg6 {[%clk 0:00:06.6]} 41. Rxg6+ {[%clk
0:00:34.2]} 41... Kf7 {[%clk 0:00:06.6]} 42. Rg7+ {[%clk 0:00:35.4]} 1-0